fUST/lending_fUST_20250426
["ID","MTS","AMOUNT","RATE_DAILY","PERIOD"]
[359051699,1745676641191,-585.19,0.00019176,2]
[359051701,1745676641201,-256.87715647,0.00019176,2]
[359051703,1745676641211,-443.02,0.00019176,2]
[359051705,1745676641220,-619.44,0.00019176,2]
[359051707,1745676641230,-639.07,0.00019176,2]
[359051709,1745676641239,-492.78,0.00019176,2]
[359051711,1745676641249,-400.0,0.00019177,2]
[359051713,1745676641258,-400.0,0.00019177,2]
[359051715,1745676641268,-1453.62,0.00019177,2]
[359051717,1745676641278,-400.0,0.00019177,2]
[359051719,1745676641287,-503.39,0.00019177,2]
[359051721,1745676641297,-930.48,0.00019177,2]
[359051723,1745676641306,-612.99,0.00019177,2]
[359051725,1745676641316,-483.83,0.00019177,2]
[359051727,1745676641326,-730.42,0.00019177,2]
[359051729,1745676641336,-624.6,0.00019177,2]
[359051731,1745676641345,-400.0,0.00019177,2]
[359051733,1745676641354,-651.61,0.00019177,2]
[359051735,1745676641364,-470.33,0.00019178,2]
[359051737,1745676641373,-400.0,0.00019178,2]
[359051739,1745676641383,-571.74,0.00019178,2]
[359051741,1745676641392,-400.0,0.00019178,2]
[359051743,1745676641401,-151.0,0.00019178,2]
[359051745,1745676641411,-300.0,0.00019178,2]
[359051747,1745676641421,-156.587,0.00019233,2]
[359051749,1745676641431,-162.380719,0.00019288,2]
[359051751,1745676641440,-168.3888056,0.00019343,2]
[359051753,1745676641449,-174.61919141,0.00019398,2]
[359051755,1745676641458,-798.7,0.0001945,2]
[359051757,1745676641467,-400.0,0.0001945,2]
[359051759,1745676641476,-400.0,0.0001945,2]
[359051761,1745676641486,-400.0,0.0001945,2]
[359051763,1745676641495,-585.19,0.0001945,2]
[359051765,1745676641504,-443.02,0.0001945,2]
[359051767,1745676641513,-619.44,0.0001945,2]
[359051769,1745676641523,-639.07,0.0001945,2]
[359051771,1745676641533,-492.78,0.0001945,2]
[359051773,1745676641543,-400.0,0.00019451,2]
[359051775,1745676641552,-400.0,0.00019451,2]
[359051777,1745676641562,-1453.62,0.00019451,2]
[359051779,1745676641572,-400.0,0.00019451,2]
[359051782,1745676641582,-503.39,0.00019451,2]
[359051783,1745676641591,-930.48,0.00019451,2]
[359051786,1745676641603,-612.99,0.00019451,2]
[359051788,1745676641612,-483.83,0.00019451,2]
[359051789,1745676641621,-730.42,0.00019451,2]
[359051791,1745676641632,-624.6,0.00019451,2]
[359051793,1745676641642,-400.0,0.00019451,2]
[359051795,1745676641651,-651.61,0.00019451,2]
[359051797,1745676641661,-470.33,0.00019452,2]
[359051800,1745676641672,-400.0,0.00019452,2]
[359051802,1745676641683,-571.74,0.00019452,2]
[359051804,1745676641693,-400.0,0.00019452,2]
[359051805,1745676641703,-181.08010149,0.00019453,2]
[359051808,1745676641712,-187.78006525,0.00019508,2]
[359051810,1745676641722,-194.72792766,0.00019563,2]
[359051812,1745676641732,-201.93286099,0.00019618,2]
[359051813,1745676641741,-587.0,0.00019631,2]
[359051816,1745676641751,-209.40437684,0.00019673,2]
[359051818,1745676641760,-798.7,0.00019724,2]
[359051820,1745676641770,-400.0,0.00019724,2]
[359051821,1745676641781,-400.0,0.00019724,2]
[359051823,1745676641791,-400.0,0.00019724,2]
[359051825,1745676641800,-585.19,0.00019724,2]
[359051827,1745676641810,-443.02,0.00019724,2]
[359051829,1745676641821,-619.44,0.00019724,2]
[359051831,1745676641830,-639.07,0.00019724,2]
[359051833,1745676641844,-492.78,0.00019724,2]
[359051835,1745676641854,-400.0,0.00019725,2]
[359051837,1745676641863,-400.0,0.00019725,2]
[359051839,1745676641872,-1453.62,0.00019725,2]
[359051841,1745676641883,-400.0,0.00019725,2]
[359051843,1745676641892,-503.39,0.00019725,2]
[359051846,1745676641907,-930.48,0.00019725,2]
[359051848,1745676641922,-612.99,0.00019725,2]
[359051850,1745676641936,-483.83,0.00019725,2]
[359051853,1745676641948,-730.42,0.00019725,2]
[359051855,1745676641962,-624.6,0.00019725,2]
[359051857,1745676641974,-194.61998967,0.00019725,2]
[359051860,1745676641985,-651.61,0.00019725,2]
[359051862,1745676641996,-470.33,0.00019726,2]
[359051864,1745676642009,-400.0,0.00019726,2]
[359051866,1745676642023,-571.74,0.00019726,2]
[359051869,1745676642035,-400.0,0.00019726,2]
[359051871,1745676642047,-217.15233878,0.00019728,2]
[359051873,1745676642060,-225.18697532,0.00019783,2]
[359051876,1745676642073,-233.51889341,0.00019838,2]
[359051878,1745676642087,-300.92831777,0.00019855,2]
[359051880,1745676642101,-242.15909246,0.00019893,2]
[359051882,1745676642113,-11739.01269979,0.000199,2]
[359051885,1745676642126,-251.11897888,0.00019948,2]
[359051887,1745676642140,-500.0,0.00019973,2]
[359051890,1745676642154,-500.0,0.00019973,2]
[359051892,1745676642166,-500.0,0.00019973,2]
[359051894,1745676642178,-500.0,0.00019973,2]
[359051897,1745676642190,-500.0,0.00019973,2]
[359051899,1745676642204,-100000.0,0.0001999,2]
[359051901,1745676642216,-798.7,0.00019998,2]
[359051904,1745676642228,-400.0,0.00019998,2]
[359051906,1745676642240,-400.0,0.00019998,2]
[359051908,1745676642253,-524.1745816,0.00019998,2]
[359051910,1745676642266,-585.19,0.00019998,2]
[359051913,1745676642278,-443.02,0.00019998,2]
[359051915,1745676642290,-619.44,0.00019998,2]
[359051917,1745676642303,-639.07,0.00019998,2]
[359051919,1745676642314,-492.78,0.00019998,2]
[359051921,1745676642324,-400.0,0.00019999,2]
[359051924,1745676642335,-400.0,0.00019999,2]
[359051926,1745676642346,-1453.62,0.00019999,2]
[359051928,1745676642359,-400.0,0.00019999,2]
[359051930,1745676642371,-503.39,0.00019999,2]
[359051932,1745676642381,-930.48,0.00019999,2]
[359051935,1745676642393,-612.99,0.00019999,2]
[359051937,1745676642407,-483.83,0.00019999,2]
[359051939,1745676642419,-730.42,0.00019999,2]
[359051941,1745676642432,-624.6,0.00019999,2]
[359051944,1745676642444,-651.61,0.00019999,2]
[359051946,1745676642456,-151.0,0.0002,2]
[359051948,1745676642470,-151.0,0.0002,2]
[359051951,1745676642485,-372.79,0.0002,2]
[359051953,1745676642500,-470.33,0.0002,2]
[359051956,1745676642511,-400.0,0.0002,2]
[359051958,1745676642525,-571.74,0.0002,2]
[359051960,1745676642537,-400.0,0.0002,2]
[359051962,1745676642547,-260.4103811,0.00020003,2]
[359051965,1745676642558,-300.92831777,0.00020028,2]
[359051967,1745676642567,-270.0455652,0.00020058,2]
[359051969,1745676642578,-280.03725112,0.00020113,2]
[359051971,1745676642588,-290.39862941,0.00020168,2]
[359051973,1745676642599,-301.1433787,0.00020223,2]
[359051975,1745676642611,-798.7,0.00020272,2]
[359051978,1745676642625,-400.0,0.00020272,2]
[359051980,1745676642638,-400.0,0.00020272,2]
[359051982,1745676642651,-585.19,0.00020272,2]
[359051984,1745676642668,-443.02,0.00020272,2]
[359051986,1745676642677,-619.44,0.00020272,2]
[359051988,1745676642688,-639.07,0.00020272,2]
[359051991,1745676642700,-492.78,0.00020272,2]
[359051993,1745676642711,-470.33,0.00020273,2]
[359051995,1745676642723,-400.0,0.00020273,2]
[359051997,1745676642736,-400.0,0.00020273,2]
[359052000,1745676642748,-571.74,0.00020273,2]
[359052002,1745676642760,-400.0,0.00020273,2]
[359052004,1745676642771,-1453.62,0.00020273,2]
[359052006,1745676642782,-400.0,0.00020273,2]
[359052008,1745676642793,-400.0,0.00020273,2]
[359052011,1745676642803,-503.39,0.00020273,2]
[359052014,1745676642814,-930.48,0.00020273,2]
[359052016,1745676642826,-612.99,0.00020273,2]
[359052019,1745676642836,-483.83,0.00020273,2]
[359052022,1745676642848,-730.42,0.00020273,2]
[359052025,1745676642862,-624.6,0.00020273,2]
[359052029,1745676642873,-651.61,0.00020273,2]
[359052031,1745676642885,-300.92831777,0.00020304,2]
[359052033,1745676642896,-230.7090679,0.00020394,2]
[359052035,1745676642907,-798.7,0.00020546,2]
[359052037,1745676642919,-400.0,0.00020546,2]
[359052041,1745676642931,-400.0,0.00020546,2]
[359052044,1745676642942,-585.19,0.00020546,2]
[359052046,1745676642955,-443.02,0.00020546,2]
[359052048,1745676642967,-619.44,0.00020546,2]
[359052050,1745676642978,-639.07,0.00020546,2]
[359052052,1745676642990,-492.78,0.00020546,2]
[359052055,1745676643005,-470.33,0.00020547,2]
[359052058,1745676643017,-400.0,0.00020547,2]
[359052060,1745676643028,-400.0,0.00020547,2]
[359052062,1745676643039,-571.74,0.00020547,2]
[359052064,1745676643050,-400.0,0.00020547,2]
[359052066,1745676643062,-1453.62,0.00020547,2]
[359052068,1745676643073,-400.0,0.00020547,2]
[359052071,1745676643084,-400.0,0.00020547,2]
[359052073,1745676643096,-503.39,0.00020547,2]
[359052075,1745676643107,-930.48,0.00020547,2]
[359052077,1745676643118,-612.99,0.00020547,2]
[359052079,1745676643129,-483.83,0.00020547,2]
[359052081,1745676643140,-730.42,0.00020547,2]
[359052083,1745676643151,-624.6,0.00020547,2]
[359052086,1745676643162,-403.0,0.00020594,2]
[359052088,1745676643173,-13365.57552667,0.000206,2]
[359052090,1745676643184,-179.76630381,0.0002064,2]
[359052092,1745676643195,-160.0,0.00020801,8]
[359052094,1745676643207,-798.7,0.0002082,2]
[359052096,1745676643218,-400.0,0.0002082,2]
[359052099,1745676643229,-400.0,0.0002082,2]
[359052101,1745676643240,-585.19,0.0002082,2]
[359052103,1745676643251,-443.02,0.0002082,2]
[359052105,1745676643262,-619.44,0.0002082,2]
[359052107,1745676643274,-639.07,0.0002082,2]
[359052110,1745676643285,-492.78,0.0002082,2]
[359052112,1745676643296,-899.33,0.00020821,2]
[359052114,1745676643308,-470.33,0.00020821,2]
[359052116,1745676643318,-400.0,0.00020821,2]
[359052118,1745676643330,-191.31102279,0.00020821,2]
[359052121,1745676643342,-571.74,0.00020821,2]
[359052123,1745676643354,-400.0,0.00020821,2]
[359052125,1745676643365,-1453.62,0.00020821,2]
[359052127,1745676643376,-400.0,0.00020821,2]
[359052129,1745676643387,-400.0,0.00020821,2]
[359052131,1745676643398,-503.39,0.00020821,2]
[359052134,1745676643410,-930.48,0.00020821,2]
[359052136,1745676643421,-612.99,0.00020821,2]
[359052138,1745676643432,-483.83,0.00020821,2]
[359052140,1745676643444,-730.42,0.00020821,2]
[359052142,1745676643455,-624.6,0.00020821,2]
[359052145,1745676643467,-600.0,0.00020822,2]
[359052147,1745676643478,-1800.0,0.00020972,2]
[359052149,1745676643489,-303.53375458,0.00020973,2]
[359052151,1745676643500,-500.0,0.00020973,2]
[359052153,1745676643511,-501.05742042,0.00020973,2]
[359052156,1745676643523,-448.33480722,0.00020973,2]
[359052159,1745676643534,-525.20581423,0.00020973,2]
[359052162,1745676643545,-500.0,0.00020973,2]
[359052166,1745676643557,-500.0,0.00020973,2]
[359052168,1745676643567,-500.0,0.00020973,2]
[359052170,1745676643579,-500.0,0.00020973,2]
[359052173,1745676643590,-500.0,0.00020973,2]
[359052175,1745676643601,-500.0,0.00020973,2]
[359052177,1745676643612,-500.0,0.00020973,2]
[359052179,1745676643623,-500.0,0.00020973,2]
[359052180,1745676643634,-500.0,0.00020973,2]
[359052181,1745676643645,-500.0,0.00020973,2]
[359052182,1745676643656,-500.0,0.00020973,2]
[359052183,1745676643667,-637.25114022,0.00020973,2]
[359052184,1745676643678,-547.64101419,0.00020973,2]
[359052185,1745676643689,-500.0,0.00020973,2]
[359052186,1745676643700,-500.65908257,0.00020973,2]
[359052187,1745676643711,-154.547996,0.0002099,2]
[359052188,1745676643722,-406.8437366,0.00020999,2]
[359052189,1745676643733,-266.69885778,0.00021,2]
[359052190,1745676643743,-3000.0,0.00021,2]
[359052191,1745676643752,-72994.74554579,0.00021,2]
[359052192,1745676643762,-151.0,0.00021,2]
[359052193,1745676643771,-151.0,0.00021,2]
[359052194,1745676643781,-3000.0,0.00021,2]
[359052207,1745676643995,-157.45,0.00021,2]
[359052210,1745676644016,-157.45,0.00021,2]
[359052212,1745676644026,-3000.0,0.0002101,2]
[359052214,1745676644036,-3000.0,0.0002102,2]
[359052216,1745676644045,-3000.0,0.0002103,2]
[359052218,1745676644055,-3000.0,0.0002104,2]
[359052220,1745676644064,-3000.0,0.0002105,2]
[359052222,1745676644074,-160.0,0.00021056,3]
[359052224,1745676644083,-3000.0,0.0002106,2]
[359052226,1745676644093,-3000.0,0.0002107,2]
[359052228,1745676644103,-3000.0,0.0002108,2]
[359052230,1745676644113,-3000.0,0.0002109,2]
[359052232,1745676644123,-798.7,0.00021094,2]
[359052234,1745676644133,-400.0,0.00021094,2]
[359052236,1745676644142,-400.0,0.00021094,2]
[359052238,1745676644152,-585.19,0.00021094,2]
[359052240,1745676644161,-443.02,0.00021094,2]
[359052242,1745676644171,-619.44,0.00021094,2]
[359052244,1745676644181,-639.07,0.00021094,2]
[359052246,1745676644191,-492.78,0.00021094,2]
[359052248,1745676644200,-899.33,0.00021095,2]
[359052250,1745676644210,-470.33,0.00021095,2]
[359052252,1745676644219,-400.0,0.00021095,2]
[359052254,1745676644229,-571.74,0.00021095,2]
[359052256,1745676644239,-400.0,0.00021095,2]
[359052258,1745676644248,-1453.62,0.00021095,2]
[359052260,1745676644258,-400.0,0.00021095,2]
[359052262,1745676644268,-400.0,0.00021095,2]
[359052264,1745676644278,-503.39,0.00021095,2]
[359052266,1745676644287,-930.48,0.00021095,2]
[359052268,1745676644297,-612.99,0.00021095,2]
[359052270,1745676644307,-483.83,0.00021095,2]
[359052272,1745676644318,-730.42,0.00021095,2]
[359052274,1745676644327,-624.6,0.00021095,2]
[359052276,1745676644337,-151.0,0.00021096,2]
[359052278,1745676644346,-151.0,0.00021096,2]
[359052280,1745676644357,-151.0,0.00021096,2]
[359052282,1745676644367,-151.0,0.00021096,2]
[359052284,1745676644376,-3000.0,0.000211,2]
[359052286,1745676644386,-3000.0,0.0002111,2]
[359052288,1745676644396,-3000.0,0.0002112,2]
[359052290,1745676644406,-3000.0,0.0002113,2]
[359052292,1745676644415,-2703.36704287,0.0002114,2]
[359052306,1745676644540,-296.63295713,0.0002114,2]
[359052308,1745676644550,-500.0,0.00021149,2]
[359052310,1745676644560,-500.0,0.00021149,2]
[359052313,1745676644570,-340.57265342,0.00021149,2]
[359052315,1745676644579,-500.0,0.00021149,2]
[359052316,1745676644589,-233.01972959,0.0002115,2]
[359052324,1745676644656,-651.61,0.00020547,2]
[359052326,1745676644666,-651.61,0.00020821,2]
[359052328,1745676644676,-152.1358977,0.00021095,2]
[359052331,1745676644687,-499.4741023,0.00021095,2]
[359052333,1745676644696,-167.38360634,0.0002115,2]
[359052335,1745676644707,-700.2151947,0.0002115,2]
[359052342,1745676644769,-2389.8832083,0.000189,2]
[359052344,1745676644779,-2389.88320802,0.00019624,2]
[359052346,1745676644788,-2389.88320802,0.00020348,2]
[359052348,1745676644799,-2389.88320802,0.00021072,3]
[359052350,1745676644809,-1899.38146937,0.0002115,2]
[359052352,1745676644819,-3000.0,0.0002116,2]
[359052354,1745676644829,-3000.0,0.0002117,2]
[359052356,1745676644842,-3000.0,0.0002118,2]
[359052358,1745676644853,-3000.0,0.0002119,2]
[359052360,1745676644863,-3000.0,0.000212,2]
[359052362,1745676644873,-3000.0,0.0002121,2]
[359052364,1745676644884,-3000.0,0.0002122,2]
[359052366,1745676644893,-3000.0,0.0002123,2]
[359052368,1745676644903,-3000.0,0.0002124,2]
[359052370,1745676644912,-3000.0,0.0002125,2]
[359052372,1745676644922,-160.0,0.00021251,9]
[359052374,1745676644931,-3000.0,0.0002126,2]
[359052376,1745676644941,-3000.0,0.0002127,2]
[359052378,1745676644951,-3000.0,0.0002128,2]
[359052380,1745676644960,-3000.0,0.0002129,2]
[359052382,1745676644970,-3000.0,0.000213,2]
[359052384,1745676644980,-634.0,0.000213,2]
[359052386,1745676644989,-3000.0,0.0002131,2]
[359052388,1745676644999,-3000.0,0.0002132,2]
[359052390,1745676645009,-3000.0,0.0002133,2]
[359052392,1745676645019,-3000.0,0.0002134,2]
[359052394,1745676645029,-3000.0,0.0002135,2]
[359052396,1745676645038,-3000.0,0.0002136,2]
[359052398,1745676645048,-798.7,0.00021368,2]
[359052400,1745676645058,-400.0,0.00021368,2]
[359052402,1745676645067,-400.0,0.00021368,2]
[359052404,1745676645077,-585.19,0.00021368,2]
[359052406,1745676645086,-443.02,0.00021368,2]
[359052408,1745676645096,-619.44,0.00021368,2]
[359052410,1745676645107,-639.07,0.00021368,2]
[359052412,1745676645117,-492.78,0.00021368,2]
[359052414,1745676645126,-899.33,0.00021369,2]
[359052416,1745676645135,-151.0,0.00021369,2]
[359052417,1745676645145,-151.0,0.00021369,2]
[359052419,1745676645154,-151.0,0.00021369,2]
[359052422,1745676645164,-263.31041,0.00021369,2]
[359052423,1745676645174,-470.33,0.00021369,2]
[359052425,1745676645184,-400.0,0.00021369,2]
[359052427,1745676645194,-571.74,0.00021369,2]
[359052429,1745676645203,-400.0,0.00021369,2]
[359052431,1745676645213,-255.945229,0.00021369,2]
[359052434,1745676645223,-255.945229,0.00021369,2]
[359052436,1745676645233,-1453.62,0.00021369,2]
[359052438,1745676645243,-400.0,0.00021369,2]
[359052440,1745676645253,-400.0,0.00021369,2]
[359052442,1745676645264,-503.39,0.00021369,2]
[359052443,1745676645274,-930.48,0.00021369,2]
[359052446,1745676645284,-926.996568,0.00021369,2]
[359052448,1745676645294,-926.996568,0.00021369,2]
[359052449,1745676645304,-612.99,0.00021369,2]
[359052451,1745676645313,-483.83,0.00021369,2]
[359052453,1745676645325,-730.42,0.00021369,2]
[359052455,1745676645335,-624.6,0.00021369,2]
[359052457,1745676645344,-151.0,0.00021369,2]
[359052459,1745676645353,-151.0,0.00021369,2]
[359052461,1745676645363,-651.61,0.00021369,2]
[359052463,1745676645372,-4000.559385,0.0002137,2]
[359052465,1745676645382,-823.0,0.00021454,2]
[359052467,1745676645392,-159.85895625,0.000215,2]
[359052469,1745676645402,-798.7,0.00021642,2]
[359052471,1745676645412,-400.0,0.00021642,2]
[359052474,1745676645422,-400.0,0.00021642,2]
[359052476,1745676645432,-585.19,0.00021642,2]
[359052477,1745676645442,-443.02,0.00021642,2]
[359052480,1745676645452,-619.44,0.00021642,2]
[359052482,1745676645462,-639.07,0.00021642,2]
[359052483,1745676645471,-492.78,0.00021642,2]
[359052485,1745676645482,-899.33,0.00021643,2]
[359052488,1745676645491,-470.33,0.00021643,2]
[359052490,1745676645501,-400.0,0.00021643,2]
[359052492,1745676645510,-571.74,0.00021643,2]
[359052494,1745676645519,-400.0,0.00021643,2]
[359052496,1745676645528,-1453.62,0.00021643,2]
[359052498,1745676645538,-400.0,0.00021643,2]
[359052499,1745676645547,-400.0,0.00021643,2]
[359052501,1745676645557,-503.39,0.00021643,2]
[359052503,1745676645567,-930.48,0.00021643,2]
[359052505,1745676645577,-612.99,0.00021643,2]
[359052507,1745676645586,-483.83,0.00021643,2]
[359052509,1745676645596,-730.42,0.00021643,2]
[359052511,1745676645607,-624.6,0.00021643,2]
[359052514,1745676645617,-651.61,0.00021643,2]
[359052516,1745676645626,-160.0,0.00021701,10]
[359052518,1745676645635,-566.8670154,0.00021726,2]
[359052520,1745676645645,-16692.97410261,0.0002187,2]
[359052522,1745676645658,-5451.02589739,0.0002187,2]
[359052524,1745676645668,-108.02447484,0.00021913,2]
[359052894,1745677483621,16295.21107085,0.00022,30]
[359052898,1745677630098,-160.0,0.00016667,2]
[359052899,1745677630120,-300.0,0.00016709,2]
[359052900,1745677630144,-129.85681104,0.0001671,2]
[359052901,1745677630173,-270.14318896,0.0001671,2]
[359052902,1745677630198,-400.0,0.0001671,2]
[359052903,1745677630222,-400.0,0.0001671,2]
[359052904,1745677630244,-400.0,0.0001671,2]
[359052905,1745677630267,-236.72379162,0.0001671,2]
[359052906,1745677631102,-163.27620838,0.0001671,2]
[359052907,1745677631127,-400.0,0.0001671,2]
[359052908,1745677631151,-400.0,0.0001671,2]
[359052909,1745677631173,-400.0,0.0001671,2]
[359052910,1745677631197,-500.69,0.0001671,2]
[359052911,1745677631221,-400.0,0.00016711,2]
[359052912,1745677631244,-400.0,0.00016711,2]
[359052913,1745677631268,-400.0,0.00016711,2]
[359052914,1745677631289,-22.64769423,0.00016711,2]
[359052915,1745677696206,3107.83666464,0.000125,2]
[359052916,1745677719779,1000.0,0.0001,2]
[359052918,1745677760125,-573.46428604,0.000149,2]
[359052919,1745677760151,-1736.1503438,0.00015,2]
[359052925,1745677810601,767.32831399,0.00023,120]
[359052958,1745677832578,-400.0,0.0001671,2]
[359052960,1745677832588,-477.35230577,0.00016711,2]
[359052962,1745677832600,-300.0,0.00016983,2]
[359052963,1745677832609,-400.0,0.00016984,2]
[359052964,1745677832619,-400.0,0.00016984,2]
[359052965,1745677832629,-400.0,0.00016984,2]
[359052966,1745677832639,-400.0,0.00016984,2]
[359052967,1745677832649,-400.0,0.00016984,2]
[359052968,1745677832659,-400.0,0.00016984,2]
[359052969,1745677832669,-400.0,0.00016984,2]
[359052971,1745677832679,-400.0,0.00016984,2]
[359052973,1745677832688,-400.0,0.00016984,2]
[359052975,1745677832698,-400.0,0.00016984,2]
[359052977,1745677832708,-400.0,0.00016984,2]
[359052979,1745677832718,-500.69,0.00016984,2]
[359052981,1745677832727,-540.80288701,0.00016984,2]
[359052983,1745677832736,-400.0,0.00016984,2]
[359052984,1745677832747,-305.65378527,0.00016984,2]
[359052985,1745677832756,-400.0,0.00016984,2]
[359052986,1745677832767,-400.0,0.00016984,2]
[359052987,1745677832776,-400.0,0.00016984,2]
[359052988,1745677832787,-400.0,0.00016984,2]
[359052989,1745677832797,-407.25,0.00016984,2]
[359052990,1745677832806,-400.0,0.00017255,2]
[359052991,1745677832816,-438.77,0.00017255,2]
[359052992,1745677832825,-452.67,0.00017255,2]
[359052993,1745677832835,-248.878534,0.00017256,2]
[359052994,1745677832844,-500.0,0.00017256,2]
[359052995,1745677832854,-500.0,0.00017256,2]
[359052996,1745677832863,-500.0,0.00017256,2]
[359052997,1745677832872,-500.0,0.00017256,2]
[359052998,1745677832881,-245.00354021,0.00017256,2]
[359052999,1745677832892,-264.69487118,0.00017256,2]
[359053000,1745677832902,-500.0,0.00017256,2]
[359053001,1745677832914,-500.0,0.00017256,2]
[359053002,1745677832924,-500.0,0.00017256,2]
[359053003,1745677832934,-500.0,0.00017256,2]
[359053004,1745677832944,-626.43,0.00017257,2]
[359053005,1745677832954,-1194.47,0.00017257,2]
[359053006,1745677832963,-400.0,0.00017257,2]
[359053007,1745677832973,-400.0,0.00017257,2]
[359053008,1745677832982,-400.0,0.00017257,2]
[359053009,1745677832991,-414.51,0.00017257,2]
[359053010,1745677833000,-236.26062676,0.00017257,2]
[359053011,1745677833010,-400.0,0.00017257,2]
[359053012,1745677833019,-468.25,0.00017257,2]
[359053013,1745677833028,-400.0,0.00017257,2]
[359053014,1745677833038,-400.0,0.00017257,2]
[359053015,1745677833047,-400.0,0.00017258,2]
[359053016,1745677833057,-400.0,0.00017258,2]
[359053017,1745677833067,-400.0,0.00017258,2]
[359053018,1745677833077,-400.0,0.00017258,2]
[359053019,1745677833087,-400.0,0.00017258,2]
[359053020,1745677833096,-400.0,0.00017258,2]
[359053021,1745677833106,-400.0,0.00017258,2]
[359053022,1745677833116,-400.0,0.00017258,2]
[359053023,1745677833126,-400.0,0.00017258,2]
[359053024,1745677833135,-400.0,0.00017258,2]
[359053025,1745677833147,-400.0,0.00017258,2]
[359053026,1745677833157,-500.69,0.00017258,2]
[359053027,1745677833167,-400.0,0.00017258,2]
[359053028,1745677833177,-400.0,0.00017258,2]
[359053029,1745677833186,-400.0,0.00017258,2]
[359053030,1745677833196,-407.25,0.00017258,2]
[359053031,1745677833207,-313.17372804,0.00017415,2]
[359053032,1745677833219,-160.0,0.00017416,2]
[359053033,1745677833229,-1641.92007514,0.00017431,2]
[359053034,1745677833239,-438.82868473,0.000175,4]
[359053035,1745677833250,-400.0,0.00017529,2]
[359053036,1745677833260,-438.77,0.00017529,2]
[359053037,1745677833270,-452.67,0.00017529,2]
[359053038,1745677833280,-520.93,0.00017531,2]
[359053039,1745677833290,-500.0,0.00017531,2]
[359053040,1745677833300,-400.0,0.00017531,2]
[359053041,1745677833310,-451.1,0.00017531,2]
[359053042,1745677833320,-626.43,0.00017531,2]
[359053043,1745677833330,-1194.47,0.00017531,2]
[359053044,1745677833340,-400.0,0.00017531,2]
[359053045,1745677833349,-400.0,0.00017531,2]
[359053046,1745677833358,-400.0,0.00017531,2]
[359053047,1745677833368,-400.0,0.00017531,2]
[359053048,1745677833378,-414.51,0.00017531,2]
[359053049,1745677833387,-400.0,0.00017531,2]
[359053050,1745677833397,-400.0,0.00017531,2]
[359053051,1745677833407,-710.78,0.00017531,2]
[359053052,1745677833417,-468.25,0.00017531,2]
[359053053,1745677833427,-400.0,0.00017531,2]
[359053054,1745677833436,-400.0,0.00017531,2]
[359053055,1745677833447,-400.0,0.00017531,2]
[359053056,1745677833456,-400.0,0.00017532,2]
[359053057,1745677833466,-400.0,0.00017532,2]
[359053058,1745677833476,-400.0,0.00017532,2]
[359053059,1745677833486,-400.0,0.00017532,2]
[359053060,1745677833496,-400.0,0.00017532,2]
[359053061,1745677833506,-400.0,0.00017532,2]
[359053062,1745677833516,-400.0,0.00017532,2]